[Event "MČR družstev mladších žáků 2024"]
[Site "Harrachov, Czech Republic"]
[Date "2024.06.14"]
[Round "2.2"]
[White "Tykalova Barbora"]
[Black "Walder Hugo"]
[Result "0-1"]
[TimeControl "25+10"]
[WhiteFideId "23750898"]
[BlackFideId "23743360"]
[WhiteElo "1284"]
[BlackElo "1489"]

1. e4 {[%clk 00:25:19]} e5 {[%clk 00:25:19]} {[%emt 00:00:01]} 2. Nf3 {[%clk
00:25:19]} {[%emt 00:00:10]} Nc6 {[%clk 00:25:28]} {[%emt 00:00:01]} 3. d4
{[%clk 00:25:20]} {[%emt 00:00:09]} exd4 {[%clk 00:25:36]} {[%emt 00:00:02]} 4.
Bc4 {[%clk 00:25:25]} {[%emt 00:00:05]} Nf6 {[%clk 00:25:28]} {[%emt 00:00:18]}
5. e5 {[%clk 00:24:24]} {[%emt 00:01:11]} d5 {[%clk 00:25:12]} {[%emt
00:00:26]} 6. Bb5 {[%clk 00:23:36]} {[%emt 00:00:57]} Ne4 {[%clk 00:24:28]}
{[%emt 00:00:53]} 7. Nxd4 {[%clk 00:23:31]} {[%emt 00:00:16]} Bd7 {[%clk
00:23:25]} {[%emt 00:01:06]} 8. Bxc6 {[%clk 00:15:01]} {[%emt 00:08:47]} bxc6
{[%clk 00:23:17]} {[%emt 00:00:18]} 9. Bf4 {[%clk 00:13:51]} {[%emt 00:01:19]}
Bc5 {[%clk 00:21:19]} {[%emt 00:02:07]} 10. h4 {[%clk 00:10:14]} {[%emt
00:03:50]} Qe7 {[%clk 00:18:43]} {[%emt 00:02:40]} 11. c3 {[%clk 00:09:25]}
{[%emt 00:01:05]} Nd6 {[%clk 00:17:34]} {[%emt 00:01:08]} 12. Qe2 {[%clk
00:09:06]} {[%emt 00:00:39]} Nf5 {[%clk 00:16:11]} {[%emt 00:01:33]} 13. Nxf5
{[%clk 00:08:23]} {[%emt 00:00:53]} Bxf5 {[%emt 00:00:05]} 14. Nd2 {[%clk
00:08:07]} {[%emt 00:00:23]} h6 {[%clk 00:16:00]} {[%emt 00:00:27]} 15. g4
{[%clk 00:08:15]} {[%emt 00:00:04]} Bd7 {[%clk 00:15:49]} {[%emt 00:00:20]} 16.
a4 {[%clk 00:07:53]} {[%emt 00:00:34]} a5 {[%clk 00:15:23]} {[%emt 00:00:36]}
17. Nb3 {[%clk 00:06:40]} {[%emt 00:01:22]} Bb6 {[%clk 00:15:03]} {[%emt
00:00:29]} 18. Rd1 {[%clk 00:06:29]} {[%emt 00:00:21]} Be6 {[%clk 00:14:10]}
{[%emt 00:01:01]} 19. Nd4 {[%clk 00:05:34]} {[%emt 00:01:09]} Bxd4 {[%clk
00:13:56]} {[%emt 00:00:25]} 20. Rxd4 {[%clk 00:05:38]} {[%emt 00:00:05]} Qd7
{[%clk 00:09:59]} {[%emt 00:04:07]} 21. Rg1 {[%clk 00:05:26]} {[%emt 00:00:22]}
c5 {[%clk 00:09:56]} {[%emt 00:00:13]} 22. Rd2 {[%clk 00:05:25]} {[%emt
00:00:10]} Qxa4 {[%clk 00:09:54]} {[%emt 00:00:14]} 23. Qe3 {[%clk 00:05:10]}
{[%emt 00:00:25]} Qb5 {[%clk 00:08:52]} {[%emt 00:01:09]} 24. g5 {[%clk
00:04:30]} {[%emt 00:00:52]} hxg5 {[%clk 00:07:08]} {[%emt 00:01:55]} 25. Bxg5
{[%clk 00:04:01]} {[%emt 00:00:39]} a4 {[%clk 00:06:12]} {[%emt 00:01:05]} 26.
f4 {[%clk 00:01:11]} {[%emt 00:03:00]} g6 {[%clk 00:06:17]} {[%emt 00:00:04]}
27. Bf6 {[%clk 00:01:10]} {[%emt 00:00:11]} Rh7 {[%clk 00:05:35]} {[%emt
00:00:52]} 28. f5 {[%clk 00:01:04]} {[%emt 00:00:16]} Bxf5 {[%clk 00:05:32]}
{[%emt 00:00:13]} 29. Rxd5 {[%clk 00:01:02]} {[%emt 00:00:12]} a3 {[%clk
00:04:26]} {[%emt 00:01:17]} 30. bxa3 {[%clk 00:00:32]} {[%emt 00:00:39]} Be6
{[%clk 00:03:27]} {[%emt 00:01:09]} 31. Rd1 {[%clk 00:00:18]} {[%emt 00:00:22]}
Bd7 {[%emt 00:01:05]} 32. e6 {[%emt 00:00:06]} Bxe6 {[%emt 00:00:07]} 0-1



[ePGN "0.1;DGT LiveChess/2.2.6"]

[Event "MČR družstev mladších žáků 2024"]
[Site "Harrachov, Czech Republic"]
[Date "2024.06.14"]
[Round "2.20"]
[White "Kala Jakub"]
[Black "Adam Frantisek"]
[Result "1-0"]
[TimeControl "25+10"]
[WhiteFideId "23753897"]
[BlackFideId "23754311"]
[WhiteElo "1657"]
[BlackElo "1272"]

1. Nf3 {[%clk 00:25:18]} {[%emt 00:00:02]} Nf6 {[%clk 00:25:11]} {[%emt
00:00:10]} 2. c4 {[%clk 00:25:26]} {[%emt 00:00:02]} e6 {[%clk 00:25:20]} 3. e3
{[%clk 00:25:31]} {[%emt 00:00:05]} d5 {[%clk 00:25:12]} {[%emt 00:00:17]} 4.
Nc3 {[%clk 00:25:33]} {[%emt 00:00:09]} c5 {[%clk 00:24:34]} {[%emt 00:00:48]}
5. cxd5 {[%clk 00:25:01]} {[%emt 00:00:42]} exd5 {[%clk 00:24:42]} {[%emt
00:00:01]} 6. d4 {[%clk 00:25:09]} {[%emt 00:00:02]} Be6 {[%clk 00:23:21]}
{[%emt 00:01:31]} 7. Bb5+ {[%clk 00:24:16]} {[%emt 00:01:03]} Nbd7 {[%clk
00:22:07]} {[%emt 00:01:25]} 8. Ne5 {[%clk 00:22:49]} {[%emt 00:01:37]} c4
{[%clk 00:20:52]} {[%emt 00:01:25]} 9. O-O {[%clk 00:19:30]} {[%emt 00:03:28]}
a6 {[%clk 00:20:49]} {[%emt 00:00:13]} 10. Bxd7+ {[%clk 00:17:48]} {[%emt
00:01:52]} Nxd7 {[%clk 00:19:51]} {[%emt 00:01:08]} 11. f4 {[%clk 00:17:21]}
{[%emt 00:00:37]} f6 {[%clk 00:18:56]} {[%emt 00:01:05]} 12. f5 {[%clk
00:15:26]} {[%emt 00:02:06]} Nxe5 {[%clk 00:17:38]} {[%emt 00:01:26]} 13. dxe5
{[%clk 00:15:04]} {[%emt 00:00:34]} d4 {[%clk 00:11:37]} {[%emt 00:06:11]} 14.
exd4 {[%clk 00:13:20]} {[%emt 00:01:53]} Bd7 {[%clk 00:09:43]} {[%emt
00:02:05]} 15. Qh5+ {[%clk 00:12:09]} {[%emt 00:01:21]} Ke7 {[%clk 00:09:40]}
{[%emt 00:00:14]} 16. Nd5# {[%clk 00:12:05]} {[%emt 00:00:13]} 1-0



[ePGN "0.1;DGT LiveChess/2.2.6"]

[Event "MČR družstev mladších žáků 2024"]
[Site "Harrachov, Czech Republic"]
[Date "2024.06.14"]
[Round "2.21"]
[White "Pistulka Stepan"]
[Black "Levchenko Alisa"]
[Result "1/2-1/2"]
[TimeControl "25+10"]
[WhiteFideId "23759909"]
[BlackFideId "23760311"]
[WhiteElo "1224"]
[BlackElo "1302"]

1. c4 {[%clk 00:25:18]} {[%emt 00:00:01]} e6 {[%clk 00:24:23]} {[%emt
00:00:57]} 2. Nc3 {[%clk 00:24:46]} {[%emt 00:00:42]} d5 {[%clk 00:24:30]}
{[%emt 00:00:04]} 3. cxd5 {[%clk 00:24:39]} {[%emt 00:00:17]} exd5 {[%clk
00:24:38]} {[%emt 00:00:01]} 4. d4 {[%clk 00:24:23]} {[%emt 00:00:26]} Bf5
{[%clk 00:24:35]} {[%emt 00:00:13]} 5. Bf4 {[%clk 00:23:09]} {[%emt 00:01:22]}
c6 {[%clk 00:24:25]} {[%emt 00:00:22]} 6. Nf3 {[%clk 00:22:40]} {[%emt
00:00:39]} Bd6 {[%clk 00:24:19]} {[%emt 00:00:15]} 7. Bg3 {[%clk 00:22:08]}
{[%emt 00:00:41]} Nf6 {[%clk 00:24:06]} {[%emt 00:00:24]} 8. e3 {[%clk
00:21:23]} {[%emt 00:00:56]} O-O {[%clk 00:23:09]} {[%emt 00:01:06]} 9. Bd3
{[%clk 00:20:55]} {[%emt 00:00:38]} Ne4 {[%clk 00:22:41]} {[%emt 00:00:38]} 10.
Bxe4 {[%clk 00:19:44]} {[%emt 00:01:21]} Bxe4 {[%clk 00:22:25]} {[%emt
00:00:26]} 11. Bxd6 {[%clk 00:18:41]} {[%emt 00:01:14]} Qxd6 {[%clk 00:22:28]}
{[%emt 00:00:07]} 12. O-O {[%clk 00:18:21]} {[%emt 00:00:30]} Nd7 {[%clk
00:21:06]} {[%emt 00:01:32]} 13. Ng5 {[%clk 00:16:52]} {[%emt 00:01:39]} Qg6
{[%clk 00:18:45]} {[%emt 00:02:31]} 14. Ngxe4 {[%clk 00:15:55]} {[%emt
00:01:07]} dxe4 {[%clk 00:18:53]} {[%emt 00:00:02]} 15. Qc2 {[%clk 00:15:09]}
{[%emt 00:00:47]} Nf6 {[%clk 00:18:18]} {[%emt 00:00:53]} 16. f3 {[%clk
00:14:20]} {[%emt 00:00:58]} exf3 {[%clk 00:18:04]} {[%emt 00:00:25]} 17. Qxg6
{[%clk 00:13:58]} {[%emt 00:00:33]} hxg6 {[%clk 00:18:11]} {[%emt 00:00:03]} 18.
Rxf3 {[%clk 00:13:50]} {[%emt 00:00:18]} Rfe8 {[%clk 00:17:54]} {[%emt
00:00:27]} 19. Re1 {[%clk 00:12:30]} {[%emt 00:01:25]} Ne4 {[%clk 00:17:20]}
{[%emt 00:00:49]} 20. Nxe4 {[%clk 00:11:41]} {[%emt 00:01:00]} Rxe4 {[%clk
00:17:26]} {[%emt 00:00:04]} 21. Rf4 {[%clk 00:11:39]} {[%emt 00:00:09]} Rae8
{[%clk 00:17:24]} {[%emt 00:00:13]} 22. Rxe4 {[%clk 00:11:11]} {[%emt
00:00:39]} Rxe4 {[%clk 00:17:31]} {[%emt 00:00:03]} 23. Kf2 {[%clk 00:11:14]}
{[%emt 00:00:06]} f5 {[%clk 00:17:27]} {[%emt 00:00:14]} 24. Kf3 {[%clk
00:10:57]} {[%emt 00:00:18]} g5 {[%clk 00:17:07]} {[%emt 00:00:39]} 25. h3
{[%clk 00:09:37]} {[%emt 00:01:27]} Kf7 {[%clk 00:15:14]} {[%emt 00:02:07]} 26.
g4 {[%clk 00:08:35]} {[%emt 00:01:11]} g6 {[%clk 00:15:12]} {[%emt 00:00:13]}
27. Rc1 {[%clk 00:08:02]} {[%emt 00:00:38]} Re6 {[%clk 00:13:39]} {[%emt
00:01:47]} 28. Rg1 {[%clk 00:06:29]} {[%emt 00:01:42]} Kf6 {[%clk 00:13:01]}
{[%emt 00:00:49]} 29. Rc1 {[%clk 00:05:47]} {[%emt 00:00:50]} b6 {[%clk
00:11:15]} {[%emt 00:01:59]} 1/2-1/2



[ePGN "0.1;DGT LiveChess/2.2.6"]

[Event "MČR družstev mladších žáků 2024"]
[Site "Harrachov, Czech Republic"]
[Date "2024.06.14"]
[Round "2.22"]
[White "Zavrel Daniel"]
[Black "Borys Petr"]
[Result "0-1"]
[TimeControl "25+10"]
[WhiteFideId "23753951"]
[WhiteElo "1106"]
[BlackElo "1339"]

1. e4 {[%clk 00:25:16]} {[%emt 00:00:03]} e5 {[%clk 00:25:18]} {[%emt
00:00:02]} 2. Nf3 {[%clk 00:25:24]} {[%emt 00:00:02]} Nc6 {[%clk 00:25:26]}
{[%emt 00:00:02]} 3. Bc4 {[%clk 00:25:29]} {[%emt 00:00:06]} Bc5 {[%clk
00:25:32]} {[%emt 00:00:04]} 4. Nc3 {[%clk 00:25:37]} {[%emt 00:00:02]} Nf6
{[%clk 00:25:35]} {[%emt 00:00:07]} 5. d3 {[%clk 00:25:30]} {[%emt 00:00:17]}
O-O {[%clk 00:25:27]} {[%emt 00:00:17]} 6. Bg5 {[%clk 00:25:22]} {[%emt
00:00:17]} Be7 {[%clk 00:25:29]} {[%emt 00:00:08]} 7. O-O {[%clk 00:25:22]}
{[%emt 00:00:11]} d6 {[%clk 00:25:33]} {[%emt 00:00:06]} 8. h3 {[%clk
00:25:23]} {[%emt 00:00:10]} Nd7 {[%clk 00:25:13]} {[%emt 00:00:30]} 9. Qd2
{[%clk 00:25:11]} {[%emt 00:00:21]} Nd4 {[%clk 00:24:57]} {[%emt 00:00:27]} 10.
Bxe7 {[%clk 00:24:55]} {[%emt 00:00:24]} Nxf3+ {[%clk 00:24:57]} {[%emt
00:00:12]} 11. gxf3 {[%clk 00:24:53]} {[%emt 00:00:11]} Qxe7 {[%clk 00:25:02]}
{[%emt 00:00:05]} 12. Nd5 {[%clk 00:24:42]} {[%emt 00:00:21]} Qd8 {[%clk
00:24:54]} {[%emt 00:00:18]} 13. Kh2 {[%clk 00:24:14]} {[%emt 00:00:37]} Nb6
{[%clk 00:24:35]} {[%emt 00:00:30]} 14. Rg1 {[%clk 00:23:44]} {[%emt 00:00:41]}
Qh4 {[%clk 00:24:16]} {[%emt 00:00:27]} 15. Rg2 {[%clk 00:23:08]} {[%emt
00:00:44]} Bxh3 {[%clk 00:23:46]} {[%emt 00:00:43]} 16. Rg3 {[%clk 00:22:14]}
{[%emt 00:00:37]} Be6+ {[%clk 00:23:03]} {[%emt 00:01:18]} 17. Kg2 {[%clk
00:21:51]} {[%emt 00:00:30]} Nxd5 {[%clk 00:22:49]} {[%emt 00:00:29]} 18. Bxd5
{[%clk 00:21:54]} {[%emt 00:00:07]} Bxd5 {[%clk 00:22:39]} {[%emt 00:00:19]} 19.
exd5 {[%clk 00:21:59]} {[%emt 00:00:06]} Qf6 {[%clk 00:22:44]} {[%emt
00:00:05]} 20. Rh1 {[%clk 00:21:50]} {[%emt 00:00:19]} Rfe8 {[%clk 00:21:43]}
{[%emt 00:01:11]} 21. Rh6 {[%clk 00:21:26]} {[%emt 00:00:32]} Qf4 {[%clk
00:21:28]} {[%emt 00:00:28]} 22. Qxf4 {[%clk 00:21:18]} {[%emt 00:00:17]} exf4
{[%clk 00:21:31]} {[%emt 00:00:07]} 23. Rg4 {[%clk 00:20:48]} {[%emt 00:00:38]}
Re2 {[%clk 00:21:25]} {[%emt 00:00:18]} 24. Rh1 {[%clk 00:20:41]} {[%emt
00:00:16]} Rxc2 {[%clk 00:21:19]} {[%emt 00:00:18]} 25. Rb1 {[%clk 00:20:26]}
{[%emt 00:00:24]} Rd2 {[%clk 00:21:25]} {[%emt 00:00:04]} 26. Rxf4 {[%clk
00:20:19]} {[%emt 00:00:16]} Rxd3 {[%clk 00:21:32]} {[%emt 00:00:04]} 27. Rc1
{[%clk 00:20:18]} {[%emt 00:00:09]} Rc8 {[%clk 00:21:33]} {[%emt 00:00:10]} 28.
Re4 {[%clk 00:19:59]} {[%emt 00:00:30]} g6 {[%clk 00:21:19]} {[%emt 00:00:24]}
29. Re7 {[%clk 00:20:00]} {[%emt 00:00:08]} Rxd5 {[%clk 00:20:51]} {[%emt
00:00:39]} 30. Rcxc7 {[%clk 00:19:43]} {[%emt 00:00:27]} Rxc7 {[%clk 00:20:59]}
{[%emt 00:00:03]} 31. Rxc7 {[%clk 00:19:51]} {[%emt 00:00:02]} Rb5 {[%clk
00:21:04]} {[%emt 00:00:04]} 32. b3 {[%clk 00:19:45]} {[%emt 00:00:15]} Kg7
{[%clk 00:20:26]} {[%emt 00:00:49]} 33. Rd7 {[%clk 00:19:46]} {[%emt 00:00:09]}
Rb6 {[%clk 00:20:27]} {[%emt 00:00:08]} 34. Kg3 {[%clk 00:19:07]} {[%emt
00:00:49]} Kf6 {[%clk 00:20:32]} {[%emt 00:00:07]} 35. f4 {[%clk 00:18:57]}
{[%emt 00:00:18]} Ke6 {[%clk 00:20:35]} {[%emt 00:00:08]} 36. Rc7 {[%clk
00:18:59]} {[%emt 00:00:09]} d5 {[%clk 00:18:54]} {[%emt 00:01:49]} 37. Rc8
{[%clk 00:18:30]} {[%emt 00:00:41]} Rc6 {[%clk 00:17:53]} {[%emt 00:01:11]} 38.
Rb8 {[%clk 00:18:20]} {[%emt 00:00:16]} Rc7 {[%clk 00:17:40]} {[%emt 00:00:25]}
39. Rh8 {[%clk 00:18:19]} {[%emt 00:00:12]} h5 {[%clk 00:17:14]} {[%emt
00:00:36]} 40. Re8+ {[%clk 00:18:15]} {[%emt 00:00:15]} Kd6 {[%clk 00:17:15]}
{[%emt 00:00:09]} 41. Ra8 {[%clk 00:17:55]} {[%emt 00:00:29]} b6 {[%clk
00:16:45]} {[%emt 00:00:41]} 42. Rd8+ {[%clk 00:17:56]} {[%emt 00:00:08]} Kc5
{[%clk 00:16:43]} {[%emt 00:00:12]} 43. Kf3 {[%clk 00:17:53]} {[%emt 00:00:10]}
Re7 {[%clk 00:16:27]} {[%emt 00:00:27]} 44. Rc8+ {[%clk 00:17:55]} {[%emt
00:00:10]} Kd4 {[%clk 00:16:25]} {[%emt 00:00:11]} 45. Rc1 {[%clk 00:17:40]}
{[%emt 00:00:25]} Rd7 {[%clk 00:15:58]} {[%emt 00:00:38]} 46. Ke2 {[%clk
00:16:54]} {[%emt 00:00:56]} h4 {[%clk 00:15:34]} {[%emt 00:00:35]} 47. Rh1
{[%clk 00:16:52]} {[%emt 00:00:11]} Kc3 {[%clk 00:15:19]} {[%emt 00:00:25]} 48.
Rxh4 {[%clk 00:16:36]} {[%emt 00:00:27]} Kc2 {[%clk 00:15:19]} {[%emt
00:00:09]} 49. Rh3 {[%clk 00:16:28]} {[%emt 00:00:16]} d4 {[%clk 00:15:15]}
{[%emt 00:00:16]} 50. Rd3 {[%clk 00:16:07]} {[%emt 00:00:30]} Kb2 {[%clk
00:15:08]} {[%emt 00:00:16]} 51. Rd2+ {[%clk 00:16:08]} {[%emt 00:00:11]} Ka3
{[%clk 00:15:06]} {[%emt 00:00:12]} 52. Kd3 {[%clk 00:16:05]} {[%emt 00:00:13]}
a5 {[%clk 00:12:42]} {[%emt 00:02:34]} 53. Kc4 {[%clk 00:15:42]} {[%emt
00:00:27]} d3 {[%clk 00:12:25]} {[%emt 00:00:33]} 54. Kb5 {[%clk 00:15:40]}
{[%emt 00:00:11]} Rd4 {[%emt 00:00:35]} 55. Kxb6 {[%clk 00:15:33]} {[%emt
00:00:01]} Rxf4 {[%clk 00:12:21]} {[%emt 00:00:07]} 56. Kxa5 {[%clk 00:15:35]}
{[%emt 00:00:08]} Rf5+ {[%clk 00:12:24]} {[%emt 00:00:07]} 57. Kb6 {[%clk
00:15:33]} {[%emt 00:00:10]} Kb4 {[%clk 00:12:30]} {[%emt 00:00:05]} 58. Rxd3
{[%clk 00:15:18]} {[%emt 00:00:22]} Rxf2 {[%clk 00:12:37]} {[%emt 00:00:07]} 59.
Rd4+ {[%clk 00:15:09]} {[%emt 00:00:16]} Kc3 {[%clk 00:12:39]} {[%emt
00:00:11]} 60. Rc4+ {[%clk 00:14:33]} {[%emt 00:00:23]} Kb2 {[%clk 00:12:25]}
{[%emt 00:00:46]} 61. Ra4 {[%clk 00:14:27]} {[%emt 00:00:16]} Ka1 {[%clk
00:12:17]} {[%emt 00:00:18]} 62. a3 {[%clk 00:14:26]} {[%emt 00:00:11]} Kb2
{[%clk 00:12:24]} {[%emt 00:00:03]} 63. b4 {[%clk 00:14:27]} {[%emt 00:00:09]}
g5 {[%clk 00:12:23]} {[%emt 00:00:12]} 64. Ra5 {[%clk 00:14:22]} {[%emt
00:00:15]} f6 {[%clk 00:12:16]} {[%emt 00:00:15]} 65. a4 {[%clk 00:13:25]}
{[%emt 00:01:08]} g4 {[%clk 00:12:19]} {[%emt 00:00:08]} 66. Rd5 {[%clk
00:13:09]} {[%emt 00:00:25]} g3 {[%clk 00:12:13]} {[%emt 00:00:16]} 67. Rd1
{[%clk 00:13:04]} {[%emt 00:00:15]} g2 {[%clk 00:11:51]} {[%emt 00:00:31]} 68.
Rg1 {[%clk 00:13:13]} {[%emt 00:00:03]} f5 {[%clk 00:11:50]} {[%emt 00:00:11]}
69. Kc5 {[%clk 00:13:18]} {[%emt 00:00:05]} f4 {[%clk 00:11:57]} {[%emt
00:00:02]} 70. Kd4 {[%clk 00:13:24]} {[%emt 00:00:02]} f3 {[%clk 00:12:05]}
{[%emt 00:00:04]} 71. Ke3 {[%clk 00:13:30]} {[%emt 00:00:05]} Rf1 {[%clk
00:12:13]} {[%emt 00:00:02]} 0-1



[ePGN "0.1;DGT LiveChess/2.2.6"]

[Event "MČR družstev mladších žáků 2024"]
[Site "Harrachov, Czech Republic"]
[Date "2024.06.14"]
[Round "2.25"]
[White "Fadrny Jachym"]
[Black "Rybar Vojta"]
[Result "1-0"]
[TimeControl "25+10"]
[WhiteFideId "23744170"]
[BlackFideId "23763604"]
[WhiteElo "1537"]
[BlackElo "1345"]

1. d4 {[%clk 00:25:19]} {[%emt 00:00:01]} Nf6 {[%clk 00:25:18]} {[%emt
00:00:02]} 2. c4 {[%clk 00:25:27]} {[%emt 00:00:01]} g6 {[%clk 00:25:26]}
{[%emt 00:00:02]} 3. Nc3 {[%clk 00:25:36]} {[%emt 00:00:01]} Bg7 {[%clk
00:25:35]} 4. e4 {[%clk 00:25:44]} {[%emt 00:00:03]} O-O {[%clk 00:25:40]}
{[%emt 00:00:04]} 5. Bd3 {[%clk 00:25:52]} {[%emt 00:00:03]} d6 {[%clk
00:25:46]} {[%emt 00:00:05]} 6. Bd2 {[%clk 00:25:53]} {[%emt 00:00:09]} c5
{[%clk 00:25:25]} {[%emt 00:00:30]} 7. d5 {[%clk 00:26:01]} {[%emt 00:00:02]}
e6 {[%clk 00:24:49]} {[%emt 00:00:46]} 8. Nge2 {[%clk 00:25:44]} {[%emt
00:00:27]} exd5 {[%clk 00:24:47]} {[%emt 00:00:12]} 9. exd5 {[%clk 00:25:51]}
{[%emt 00:00:04]} a6 {[%clk 00:24:45]} {[%emt 00:00:12]} 10. O-O {[%clk
00:25:52]} {[%emt 00:00:08]} Re8 {[%clk 00:24:49]} {[%emt 00:00:06]} 11. Ng3
{[%clk 00:25:46]} {[%emt 00:00:16]} Nbd7 {[%clk 00:24:29]} {[%emt 00:00:31]} 12.
f4 {[%clk 00:25:29]} {[%emt 00:00:26]} Nb6 {[%clk 00:16:46]} {[%emt 00:07:53]}
13. a3 {[%clk 00:25:27]} {[%emt 00:00:13]} Bg4 {[%clk 00:16:34]} {[%emt
00:00:21]} 14. Qc2 {[%clk 00:25:10]} {[%emt 00:00:27]} Qd7 {[%clk 00:13:44]}
{[%emt 00:03:00]} 15. h3 {[%clk 00:25:08]} {[%emt 00:00:12]} Bxh3 {[%clk
00:12:58]} {[%emt 00:00:56]} 16. gxh3 {[%clk 00:21:21]} {[%emt 00:03:58]} Qxh3
{[%clk 00:12:55]} {[%emt 00:00:13]} 17. Rf3 {[%clk 00:21:00]} {[%emt 00:00:31]}
Nh5 {[%clk 00:11:59]} {[%emt 00:01:06]} 18. Nce2 {[%clk 00:20:18]} {[%emt
00:00:52]} Rxe2 {[%clk 00:09:34]} {[%emt 00:02:35]} 19. Bxe2 {[%clk 00:18:19]}
{[%emt 00:02:08]} Nxg3 {[%clk 00:09:36]} {[%emt 00:00:09]} 20. Bf1 {[%clk
00:17:48]} {[%emt 00:00:41]} Qh1+ {[%clk 00:08:48]} {[%emt 00:00:55]} 21. Kf2
{[%clk 00:17:50]} {[%emt 00:00:10]} Qh2+ {[%emt 00:00:23]} 22. Bg2 {[%emt
00:00:04]} Bd4+ {[%clk 00:07:13]} {[%emt 00:01:19]} 23. Be3 {[%clk 00:17:30]}
{[%emt 00:00:30]} Bxe3+ {[%clk 00:07:09]} {[%emt 00:00:13]} 24. Rxe3 {[%clk
00:14:54]} {[%emt 00:02:47]} Nf5 {[%clk 00:07:04]} {[%emt 00:00:15]} 25. Re4
{[%clk 00:12:00]} {[%emt 00:03:04]} Ng3 {[%clk 00:06:47]} {[%emt 00:00:25]} 26.
Rae1 {[%clk 00:08:55]} {[%emt 00:03:17]} Nxe4+ {[%clk 00:06:35]} {[%emt
00:00:22]} 27. Rxe4 {[%clk 00:09:01]} {[%emt 00:00:03]} Qh4+ {[%clk 00:06:34]}
{[%emt 00:00:11]} 28. Kg1 {[%clk 00:09:09]} {[%emt 00:00:02]} Qf6 {[%clk
00:06:22]} {[%emt 00:00:16]} 29. Qb3 {[%clk 00:09:16]} {[%emt 00:00:10]} Qd8
{[%clk 00:06:03]} {[%emt 00:00:24]} 30. Qc3 {[%clk 00:08:59]} {[%emt 00:00:32]}
Na4 {[%clk 00:05:58]} {[%emt 00:00:13]} 31. Qc2 {[%clk 00:09:06]} {[%emt
00:00:05]} Nb6 {[%clk 00:05:22]} {[%emt 00:00:45]} 32. b4 {[%clk 00:09:13]}
{[%emt 00:00:03]} cxb4 {[%clk 00:05:27]} {[%emt 00:00:05]} 33. axb4 {[%clk
00:09:22]} {[%emt 00:00:02]} Rc8 {[%clk 00:05:24]} {[%emt 00:00:13]} 34. Rd4
{[%clk 00:09:26]} {[%emt 00:00:07]} Qf6 {[%clk 00:05:00]} {[%emt 00:00:33]} 35.
Qd3 {[%clk 00:08:17]} {[%emt 00:01:19]} Na4 {[%clk 00:04:25]} {[%emt 00:00:39]}
36. Re4 {[%clk 00:08:07]} {[%emt 00:00:25]} Qa1+ {[%clk 00:04:02]} {[%emt
00:00:31]} 37. Kh2 {[%clk 00:08:15]} {[%emt 00:00:05]} Qf6 {[%clk 00:04:04]}
{[%emt 00:00:05]} 38. Qe2 {[%clk 00:07:29]} {[%emt 00:00:59]} Qd8 {[%clk
00:02:33]} {[%emt 00:01:39]} 39. Qe3 {[%clk 00:06:27]} {[%emt 00:01:14]} Qh4+
{[%clk 00:00:22]} {[%emt 00:02:21]} 40. Bh3 {[%clk 00:06:28]} {[%emt 00:00:09]}
Qd8 {[%clk 00:00:25]} {[%emt 00:00:07]} 41. Bxc8 {[%clk 00:06:34]} {[%emt
00:00:04]} Qh4+ {[%clk 00:00:23]} {[%emt 00:00:12]} 42. Bh3 {[%clk 00:06:33]}
{[%emt 00:00:11]} Nb2 {[%clk 00:00:21]} {[%emt 00:00:12]} 43. Re8+ {[%clk
00:06:40]} {[%emt 00:00:03]} Kg7 {[%clk 00:00:30]} 44. Qc3+ {[%clk 00:06:44]}
{[%emt 00:00:06]} Kh6 {[%clk 00:00:35]} {[%emt 00:00:06]} 45. Qxb2 {[%clk
00:06:45]} {[%emt 00:00:09]} Qxf4+ {[%clk 00:00:43]} {[%emt 00:00:02]} 46. Kg2
{[%clk 00:06:52]} {[%emt 00:00:03]} Qg5+ {[%clk 00:00:45]} {[%emt 00:00:07]} 47.
Kh1 {[%clk 00:06:46]} {[%emt 00:00:16]} Qg3 {[%clk 00:00:19]} {[%emt 00:00:36]}
48. Qd2+ {[%clk 00:06:51]} {[%emt 00:00:05]} Kg7 {[%clk 00:00:21]} {[%emt
00:00:08]} 49. Qg2 {[%clk 00:06:59]} {[%emt 00:00:03]} Qa3 {[%emt 00:00:13]} 50.
Qf1 {[%clk 00:06:53]} {[%emt 00:00:12]} Qc3 {[%clk 00:00:00]} {[%emt 00:00:24]}
51. Re7 {[%clk 00:06:53]} {[%emt 00:00:09]} 1-0



[ePGN "0.1;DGT LiveChess/2.2.6"]